fUST/lending_fUST_20250604
["ID","MTS","AMOUNT","RATE_DAILY","PERIOD"]
[364077331,1748989838893,-275.61744052,0.00017025,2]
[364077333,1748989838905,-440.0,0.00017025,2]
[364077335,1748989838915,-440.0,0.00017025,2]
[364077337,1748989838924,-440.0,0.00017025,2]
[364077339,1748989838936,-440.0,0.00017025,2]
[364077341,1748989838947,-440.0,0.00017025,2]
[364077343,1748989838956,-362.2231976,0.00017025,2]
[364077345,1748989838966,-440.0,0.00017025,2]
[364077347,1748989838975,-363.7708243,0.00017025,2]
[364077348,1748989838985,-440.0,0.00017025,2]
[364077350,1748989838995,-440.0,0.00017025,2]
[364077352,1748989839005,-440.0,0.00017025,2]
[364077354,1748989839014,-440.0,0.00017025,2]
[364077356,1748989839024,-440.0,0.00017025,2]
[364077359,1748989839033,-440.0,0.00017026,2]
[364077360,1748989839042,-440.0,0.00017026,2]
[364077363,1748989839052,-440.0,0.00017026,2]
[364077365,1748989839061,-440.0,0.00017026,2]
[364077367,1748989839070,-380.0,0.00017026,2]
[364077369,1748989839080,-440.0,0.00017026,2]
[364077371,1748989839088,-440.0,0.00017026,2]
[364077373,1748989839099,-440.0,0.00017026,2]
[364077375,1748989839108,-440.0,0.00017026,2]
[364077377,1748989839117,-440.0,0.00017026,2]
[364077379,1748989839126,-440.0,0.00017026,2]
[364077380,1748989839137,-370.0,0.00017026,2]
[364077383,1748989839146,-419.99840326,0.00017026,2]
[364077384,1748989839156,-333.15164657,0.00017026,2]
[364077387,1748989839166,-440.0,0.00017026,2]
[364077389,1748989839176,-440.0,0.00017026,2]
[364077390,1748989839186,-393.76464637,0.00017026,2]
[364077392,1748989839196,-572.58483918,0.00017026,2]
[364077394,1748989839205,-394.83458103,0.00017026,2]
[364077396,1748989839214,-440.0,0.00017026,2]
[364077399,1748989839224,-404.80896396,0.00017026,2]
[364077402,1748989839245,-440.0,0.00017026,2]
[364077404,1748989839257,-263.38674096,0.00017026,2]
[364077406,1748989839267,-430.0,0.00017026,2]
[364077408,1748989839277,-430.0,0.00017026,2]
[364077410,1748989839287,-440.0,0.00017026,2]
[364077412,1748989839297,-440.0,0.00017026,2]
[364077414,1748989839307,-440.0,0.00017026,2]
[364077417,1748989839318,-440.0,0.00017026,2]
[364077419,1748989839327,-572.55741853,0.00017026,2]
[364077421,1748989839337,-440.0,0.00017026,2]
[364077423,1748989839347,-410.0,0.00017026,2]
[364077425,1748989839356,-440.0,0.00017026,2]
[364077427,1748989839365,-440.0,0.00017026,2]
[364077429,1748989839376,-440.0,0.00017026,2]
[364077431,1748989839386,-390.0,0.00017026,2]
[364077433,1748989839396,-400.0,0.00017026,2]
[364077435,1748989839406,-440.0,0.00017026,2]
[364077437,1748989839417,-151.0,0.00017026,2]
[364077439,1748989839426,-440.0,0.00017026,2]
[364077441,1748989839438,-440.0,0.00017026,2]
[364077443,1748989839448,-347.76113185,0.00017026,2]
[364077445,1748989839458,-440.0,0.00017026,2]
[364077447,1748989839468,-440.0,0.00017026,2]
[364077449,1748989839479,-440.0,0.00017026,2]
[364077451,1748989839488,-440.0,0.00017026,2]
[364077453,1748989839498,-440.0,0.00017026,2]
[364077456,1748989839507,-440.0,0.00017026,2]
[364077458,1748989839519,-440.0,0.00017026,2]
[364077460,1748989839528,-440.0,0.00017026,2]
[364077462,1748989839538,-440.0,0.00017026,2]
[364077464,1748989839548,-151.0,0.00017053,2]
[364077466,1748989839558,-204.15406445,0.00017081,2]
[364077468,1748989839568,-420.0,0.00017181,2]
[364077470,1748989839577,-440.0,0.0001726,2]
[364077472,1748989839587,-440.0,0.0001726,2]
[364077474,1748989839596,-420.0,0.0001726,2]
[364077476,1748989839606,-440.0,0.0001726,2]
[364077479,1748989839615,-420.0,0.00017298,2]
[364077481,1748989839625,-420.0,0.00017298,2]
[364077483,1748989839635,-440.0,0.00017298,2]
[364077485,1748989839644,-440.0,0.00017298,2]
[364077487,1748989839654,-420.0,0.00017298,2]
[364077489,1748989839664,-420.0,0.00017298,2]
[364077491,1748989839675,-440.0,0.00017298,2]
[364077493,1748989839684,-420.0,0.00017298,2]
[364077495,1748989839695,-440.0,0.00017298,2]
[364077497,1748989839704,-420.0,0.00017298,2]
[364077499,1748989839714,-420.0,0.00017298,2]
[364077501,1748989839723,-420.0,0.00017298,2]
[364077503,1748989839734,-420.0,0.00017298,2]
[364077505,1748989839744,-430.0,0.00017298,2]
[364077507,1748989839753,-420.0,0.00017298,2]
[364077509,1748989839763,-420.0,0.00017298,2]
[364077511,1748989839773,-440.0,0.00017299,2]
[364077513,1748989839782,-440.0,0.00017299,2]
[364077515,1748989839792,-420.0,0.00017299,2]
[364077517,1748989839802,-440.0,0.00017299,2]
[364077520,1748989839813,-440.0,0.00017299,2]
[364077524,1748989839830,-440.0,0.000173,2]
[364077527,1748989839840,-440.0,0.00017534,2]
[364077530,1748989839849,-440.0,0.00017534,2]
[364077532,1748989839859,-440.0,0.00017534,2]
[364077534,1748989839872,-420.0,0.00017572,2]
[364077536,1748989839882,-522.48,0.00017572,2]
[364077538,1748989839892,-440.0,0.00017572,2]
[364077540,1748989839906,-420.0,0.00017572,2]
[364077542,1748989839916,-440.0,0.00017573,2]
[364077544,1748989839926,-437.02919449,0.00017573,2]
[364077546,1748989839937,-440.0,0.00017573,2]
[364077548,1748989839948,-320.40883722,0.00017573,2]
[364077550,1748989839958,-440.0,0.00017573,2]
[364077552,1748989839968,-565.5,0.00017808,2]
[364077554,1748989839977,-440.0,0.00017808,2]
[364077556,1748989839990,-440.0,0.00017808,2]
[364077558,1748989840000,-440.0,0.00017846,2]
[364077561,1748989840011,-440.0,0.00017847,2]
[364077563,1748989840022,-440.0,0.00017847,2]
[364077565,1748989840031,-440.0,0.00017847,2]
[364077567,1748989840041,-440.0,0.00018082,2]
[364077569,1748989840051,-440.0,0.00018082,2]
[364077571,1748989840061,-440.0,0.0001812,2]
[364077573,1748989840070,-440.0,0.00018121,2]
[364077575,1748989840080,-440.0,0.00018121,2]
[364077577,1748989840090,-440.0,0.00018121,2]
[364077579,1748989840101,-440.0,0.00018259,2]
[364077581,1748989840110,-440.0,0.00018259,2]
[364077583,1748989840120,-440.0,0.00018259,2]
[364077585,1748989840130,-440.0,0.00018259,2]
[364077587,1748989840140,-440.0,0.00018259,2]
[364077589,1748989840150,-440.0,0.00018259,2]
[364077591,1748989840159,-440.0,0.00018259,2]
[364077593,1748989840169,-405.47862158,0.00018259,2]
[364077595,1748989840179,-440.0,0.00018259,2]
[364077597,1748989840190,-440.0,0.00018259,2]
[364077600,1748989840200,-440.0,0.00018259,2]
[364077602,1748989840209,-440.0,0.0001826,2]
[364077604,1748989840219,-440.0,0.00018356,2]
[364077606,1748989840229,-440.0,0.00018356,2]
[364077608,1748989840239,-440.0,0.00018394,2]
[364077610,1748989840250,-440.0,0.00018395,2]
[364077612,1748989840259,-440.0,0.00018395,2]
[364077614,1748989840269,-440.0,0.00018395,2]
[364077616,1748989840279,-430.0,0.00018533,2]
[364077618,1748989840288,-440.0,0.0001863,2]
[364077620,1748989840298,-440.0,0.0001863,2]
[364077622,1748989840307,-423.63107087,0.0001865,2]
[364077624,1748989840317,-160.0,0.0001865,2]
[364077626,1748989840328,-160.0,0.0001865,2]
[364077628,1748989840338,-229.42821335,0.0001865,2]
[364077630,1748989840348,-440.0,0.00018668,2]
[364077632,1748989840357,-440.0,0.00018669,2]
[364077634,1748989840367,-440.0,0.00018669,2]
[364077636,1748989840377,-440.0,0.00018669,2]
[364077638,1748989840387,-300.0,0.0001879,2]
[364077640,1748989840397,-210.34763462,0.000189,2]
[364077643,1748989840407,-525.1310108,0.000189,2]
[364077645,1748989840417,-440.0,0.00018904,2]
[364077647,1748989840426,-440.0,0.00018904,2]
[364077649,1748989840436,-440.0,0.00018942,2]
[364077651,1748989840448,-440.0,0.00018943,2]
[364077653,1748989840457,-440.0,0.00018943,2]
[364077655,1748989840467,-448.46497633,0.00018943,2]
[364077657,1748989840476,-525.13101055,0.00019107,2]
[364077658,1748989840486,-219.06,0.00019178,2]
[364077661,1748989840495,-440.0,0.00019178,2]
[364077663,1748989840505,-181.684091,0.00019178,2]
[364077665,1748989840514,-585.73680109,0.00019216,2]
[364077667,1748989840524,-440.0,0.00019217,2]
[364077669,1748989840534,-440.0,0.00019217,2]
[364077671,1748989840544,-525.13101055,0.00019314,2]
[364077673,1748989840556,-440.0,0.00019452,2]
[364077675,1748989840572,-440.0,0.00019491,2]
[364077677,1748989840583,-440.0,0.00019491,2]
[364077679,1748989840592,-1001.95813943,0.000195,2]
[364077681,1748989840602,-30810.65654118,0.000195,2]
[364077683,1748989840611,-380.13,0.00019726,2]
[364077685,1748989840630,-401.95183566,0.00019765,2]
[364077687,1748989840640,-356.49035792,0.00019765,2]
[364077689,1748989840650,-180.842,0.00019802,2]
[364077691,1748989840660,-242.99262108,0.0002,5]
[364077693,1748989840670,-75053.37203589,0.0002,2]
[364077695,1748989840679,-1692.05104298,0.0002,2]
[364077697,1748989840690,-288.763148,0.00020187,2]
[364077699,1748989840699,-1027.22,0.000208,2]
[364077701,1748989840709,-10664.34851827,0.00021,2]
[364077703,1748989840720,-51977.00370006,0.00021,7]
[364077706,1748989840730,-153.0,0.0002142,2]
[364077707,1748989840739,-153.0,0.0002142,2]
[364077709,1748989840749,-153.0,0.0002142,2]
[364077712,1748989840759,-153.0,0.0002142,2]
[364077714,1748989840768,-5902.93689244,0.000217,2]
[364077716,1748989840778,-20583.56698152,0.00022,2]
[364077718,1748989840787,-165.37665368,0.00022,10]
[364077720,1748989840797,-224.0,0.00022,2]
[364077721,1748989840806,-144529.02,0.00022,7]
[364077724,1748989840816,-256.352417,0.000221,2]
[364077726,1748989840825,-256.352417,0.000221,2]
[364077728,1748989840835,-728.7564356,0.00022219,2]
[364077730,1748989840844,-364.5107659,0.00022219,2]
[364077732,1748989840854,-364.5107659,0.00022219,2]
[364077734,1748989840863,-364.5107659,0.00022219,2]
[364077736,1748989840873,-364.5107659,0.00022219,2]
[364077738,1748989840883,-962.0,0.00022316,2]
[364077740,1748989840893,-207.4,0.00022335,2]
[364077742,1748989840905,-500.0,0.00022492,2]
[364077744,1748989840914,-409.02410236,0.00022492,2]
[364077746,1748989840923,-392.60563126,0.00022492,2]
[364077748,1748989840933,-500.0,0.00022492,2]
[364077750,1748989840945,-500.0,0.00022492,2]
[364077752,1748989840955,-500.0,0.00022492,2]
[364077754,1748989840964,-500.0,0.00022492,2]
[364077756,1748989840975,-500.0,0.00022492,2]
[364077758,1748989840985,-500.0,0.00022492,2]
[364077760,1748989840994,-349.37482066,0.00022492,2]
[364077762,1748989841004,-500.0,0.00022492,2]
[364077763,1748989841013,-500.0,0.00022492,2]
[364077764,1748989841023,-500.0,0.00022492,2]
[364077765,1748989841032,-535.56758073,0.00022492,2]
[364077766,1748989841041,-500.0,0.00022492,2]
[364077767,1748989841050,-211.87660772,0.00022492,2]
[364077768,1748989841060,-500.0,0.00022492,2]
[364077769,1748989841069,-500.0,0.00022492,2]
[364077770,1748989841078,-500.0,0.00022492,2]
[364077771,1748989841087,-500.0,0.00022492,2]
[364077772,1748989841098,-604.65796172,0.00022492,2]
[364077773,1748989841107,-500.0,0.00022492,2]
[364077774,1748989841116,-500.0,0.00022492,2]
[364077775,1748989841126,-500.0,0.00022492,2]
[364077776,1748989841135,-233.70481993,0.00022492,2]
[364077777,1748989841144,-500.0,0.00022492,2]
[364077778,1748989841153,-500.0,0.00022492,2]
[364077779,1748989841162,-500.0,0.00022492,2]
[364077780,1748989841172,-500.0,0.00022492,2]
[364077781,1748989841182,-500.0,0.00022492,2]
[364077782,1748989841193,-500.0,0.00022492,2]
[364077783,1748989841203,-500.0,0.00022492,2]
[364077784,1748989841212,-500.0,0.00022492,2]
[364077785,1748989841221,-500.0,0.00022492,2]
[364077786,1748989841231,-500.0,0.00022492,2]
[364077787,1748989841241,-500.0,0.00022492,2]
[364077788,1748989841257,-500.0,0.00022492,2]
[364077790,1748989841270,-500.0,0.00022492,2]
[364077792,1748989841280,-500.0,0.00022492,2]
[364077794,1748989841290,-500.0,0.00022492,2]
[364077796,1748989841300,-500.0,0.00022492,2]
[364077798,1748989841310,-500.0,0.00022492,2]
[364077800,1748989841320,-550.92107124,0.00022492,2]
[364077802,1748989841330,-500.0,0.00022492,2]
[364077804,1748989841340,-500.0,0.00022492,2]
[364077807,1748989841350,-500.0,0.00022492,2]
[364077809,1748989841360,-500.0,0.00022492,2]
[364077811,1748989841370,-500.0,0.00022492,2]
[364077813,1748989841380,-500.0,0.00022492,2]
[364077815,1748989841390,-500.0,0.00022492,2]
[364077817,1748989841400,-500.0,0.00022492,2]
[364077819,1748989841410,-500.0,0.00022492,2]
[364077821,1748989841419,-500.0,0.00022492,2]
[364077823,1748989841429,-500.0,0.00022492,2]
[364077825,1748989841441,-500.0,0.00022492,2]
[364077827,1748989841451,-500.0,0.00022492,2]
[364077829,1748989841460,-500.0,0.00022492,2]
[364077831,1748989841470,-500.0,0.00022492,2]
[364077833,1748989841480,-158.5442955,0.00022493,2]
[364077835,1748989841490,-176.5641048,0.00022493,2]
[364077837,1748989841500,-153.0,0.00022493,2]
[364077839,1748989841510,-153.0,0.00022493,2]
[364077841,1748989841520,-572.6068135,0.00022493,2]
[364077843,1748989841530,-154.2001919,0.00022493,2]
[364077845,1748989841540,-176.5641048,0.00022493,2]
[364077847,1748989841550,-153.0,0.00022493,2]
[364077849,1748989841559,-158.5442955,0.00022493,2]
[364077851,1748989841569,-572.6068135,0.00022493,2]
[364077853,1748989841579,-153.0,0.00022493,2]
[364077855,1748989841589,-176.5641048,0.00022493,2]
[364077857,1748989841599,-572.6068135,0.00022493,2]
[364077859,1748989841609,-158.5442955,0.00022493,2]
[364077861,1748989841619,-306.0,0.00022493,2]
[364077863,1748989841629,-158.5442955,0.00022493,2]
[364077880,1748989841791,-306.0,0.00022493,2]
[364077882,1748989841801,-572.6068135,0.00022493,2]
[364077884,1748989841811,-176.5641048,0.00022493,2]
[364077886,1748989841820,-297.0203863,0.00022493,2]
[364077888,1748989841830,-158.5442955,0.00022493,2]
[364077890,1748989841840,-572.6068135,0.00022493,2]
[364077892,1748989841850,-153.0,0.00022493,2]
[364077894,1748989841860,-459.2205728,0.00022493,2]
[364077896,1748989841870,-176.5641048,0.00022493,2]
[364077898,1748989841880,-153.0,0.00022493,2]
[364077900,1748989841889,-572.6068135,0.00022493,2]
[364077902,1748989841898,-176.5641048,0.00022493,2]
[364077904,1748989841910,-572.6068135,0.00022493,2]
[364077906,1748989841920,-158.5442955,0.00022493,2]
[364077908,1748989841929,-153.0,0.00022493,2]
[364077910,1748989841939,-158.5442955,0.00022493,2]
[364077912,1748989841950,-176.5641048,0.00022493,2]
[364077915,1748989841959,-153.0,0.00022493,2]
[364077917,1748989841969,-572.6068135,0.00022493,2]
[364077919,1748989841981,-6115.94959678,0.000225,60]
[364077921,1748989841990,-5179.84538315,0.00022712,7]
[364077922,1748989841999,-159.79694846,0.00022932,2]
[364077924,1748989842009,-300.71566544,0.00023,3]
[364077927,1748989842020,-67229.24665096,0.00023,2]
[364077928,1748989842031,-1103.05249401,0.00023,20]
[364077930,1748989842042,-1326.6462031,0.00023,2]
[364077932,1748989842052,-7360.60695664,0.00023055,2]
[364077934,1748989842062,-5000.0,0.00023055,2]
[364077936,1748989842077,-5000.0,0.00023055,2]
[364077938,1748989842086,-5000.0,0.00023055,2]
[364077940,1748989842096,-160.0,0.00023178,3]
[364077942,1748989842105,-364.5107659,0.00023178,2]
[364077944,1748989842115,-364.5107659,0.00023178,2]
[364077946,1748989842125,-364.5107659,0.00023178,2]
[364077948,1748989842135,-364.5107659,0.00023178,2]
[364077950,1748989842144,-330.2898307,0.00023178,2]
[364077952,1748989842154,-159.79694846,0.00023233,2]
[364077954,1748989842163,-159.79694846,0.00023233,2]
[364077956,1748989842173,-250.904194,0.000233,7]
[364077958,1748989842182,-250.904194,0.000233,7]
[364077960,1748989842192,-256.352417,0.000233,2]
[364077962,1748989842201,-256.352417,0.000233,2]
[364077964,1748989842210,-1892.0337929,0.000233,15]
[364077966,1748989842220,-137492.29754707,0.000233,7]
[364077969,1748989842241,-212.86879254,0.00018642,2]
[364077972,1748989842250,-7036.72245293,0.000233,7]
[364077973,1748989842260,-275.5,0.000233,8]
[364077976,1748989842270,-158.5442955,0.00023315,2]
[364077978,1748989842280,-572.6068135,0.00023315,2]
[364077980,1748989842289,-153.0,0.00023315,2]
[364077982,1748989842299,-153.0,0.00023315,2]
[364077983,1748989842308,-572.6068135,0.00023315,2]
[364077986,1748989842318,-572.6068135,0.00023315,2]
[364077988,1748989842328,-153.0,0.00023315,2]
[364077990,1748989842337,-572.6068135,0.00023315,2]
[364077992,1748989842347,-153.0,0.00023315,2]
[364077994,1748989842357,-503.1412676,0.00023315,2]
[364077996,1748989842376,-153.0,0.00023315,2]
[364077998,1748989842392,-572.6068135,0.00023315,2]
[364078000,1748989842402,-153.0,0.00023315,2]
[364078002,1748989842412,-153.0,0.00023315,2]
[364078004,1748989842421,-153.0,0.00023315,2]
[364078006,1748989842430,-0.23484206,0.00023315,2]
[364078008,1748989842443,-152.76515794,0.00023315,2]
[364078010,1748989842453,-192.6249252,0.00023315,2]
[364078012,1748989842462,-1866.558005,0.00023324,3]
[364078014,1748989842472,-1027.22,0.000234,7]
[364078016,1748989842481,-3818.63285145,0.000235,2]
[364078018,1748989842490,-47440.32521249,0.000235,2]
[364078020,1748989842500,-2573.91371224,0.000236,7]
[364078022,1748989842510,-248.86902064,0.00023699,2]
[364078024,1748989842520,-215.0738,0.00023704,2]
[364078026,1748989842530,-1073.98500383,0.00023776,2]
[364078028,1748989842540,-248.86902063,0.00023787,2]
[364078030,1748989842550,-2347.8,0.0002379,10]
[364078032,1748989842560,-500.0,0.00023798,2]
[364078033,1748989842570,-500.0,0.00023799,2]
[364078035,1748989842580,-500.0,0.00023799,2]
[364078038,1748989842590,-500.0,0.00023799,2]
[364078040,1748989842599,-500.0,0.00023799,2]
[364078041,1748989842609,-419.58557177,0.00023799,2]
[364078042,1748989842619,-500.0,0.00023799,2]
[364078043,1748989842629,-500.0,0.00023799,2]
[364078044,1748989842639,-500.0,0.00023799,2]
[364078046,1748989842650,-500.0,0.00023799,2]
[364078047,1748989842658,-500.0,0.00023799,2]
[364078049,1748989842668,-119103.9352386,0.000238,2]
[364078051,1748989842677,-34257.80244516,0.000238,3]
[364078053,1748989842687,-466096.13285602,0.000238,2]
[364078054,1748989842698,-151.0,0.000238,7]
[364078055,1748989842707,-151.0,0.000238,7]
[364078058,1748989842716,-151.0,0.000238,7]
[364078059,1748989842726,-151.0,0.000238,7]
[364078061,1748989842735,-151.0,0.000238,7]
[364078062,1748989842745,-151.0,0.000238,7]
[364078063,1748989842755,-151.0,0.000238,7]
[364078064,1748989842765,-156.579289,0.000238,7]
[364078065,1748989842775,-39284.59,0.000238,2]
[364078066,1748989842785,-151.0,0.000238,7]
[364078067,1748989842795,-10202.07,0.000238,2]
[364078068,1748989842804,-151.0,0.000238,7]
[364078069,1748989842814,-151.0,0.000238,7]
[364078070,1748989842823,-179.684618,0.000238,7]
[364078071,1748989842833,-179.684618,0.000238,7]
[364078072,1748989842843,-179.684618,0.000238,7]
[364078073,1748989842852,-179.684618,0.000238,7]
[364078074,1748989842862,-160.0,0.000238,3]
[364078075,1748989842872,-151.0,0.000238,7]
[364078076,1748989842882,-151.0,0.000238,7]
[364078077,1748989842892,-151.0,0.000238,7]
[364078078,1748989842903,-299.947625,0.000238,7]
[364078079,1748989842913,-299.947625,0.000238,7]
[364078080,1748989842923,-299.947625,0.000238,7]
[364078081,1748989842932,-299.947625,0.000238,7]
[364078082,1748989842942,-151.0,0.000238,7]
[364078083,1748989842952,-151.0,0.000238,7]
[364078084,1748989842961,-153.0,0.000238,3]
[364078085,1748989842971,-153.0,0.000238,3]
[364078086,1748989842982,-153.0,0.000238,3]
[364078087,1748989842992,-153.0,0.000238,3]
[364078088,1748989843001,-153.54668086,0.000238,3]
[364078090,1748989843010,-316.0,0.000238,3]
[364078092,1748989843019,-316.0,0.000238,3]
[364078093,1748989843030,-316.0,0.000238,3]
[364078094,1748989843039,-316.0,0.000238,3]
[364078095,1748989843048,-316.0,0.000238,3]
[364078096,1748989843057,-316.0,0.000238,3]
[364078097,1748989843067,-316.0,0.000238,3]
[364078098,1748989843077,-300.661725,0.000238,7]
[364078099,1748989843087,-300.661725,0.000238,7]
[364078100,1748989843096,-316.0,0.000238,3]
[364078101,1748989843106,-316.0,0.000238,3]
[364078102,1748989843116,-316.0,0.000238,3]
[364078103,1748989843125,-300.661725,0.000238,7]
[364078104,1748989843135,-300.661725,0.000238,7]
[364078105,1748989843144,-316.0,0.000238,3]
[364078106,1748989843155,-316.0,0.000238,3]
[364078107,1748989843165,-316.0,0.000238,3]
[364078108,1748989843174,-316.0,0.000238,3]
[364078109,1748989843184,-316.0,0.000238,3]
[364078110,1748989843194,-316.0,0.000238,3]
[364078111,1748989843203,-316.0,0.000238,3]
[364078112,1748989843213,-316.0,0.000238,3]
[364078113,1748989843223,-316.0,0.000238,3]
[364078114,1748989843232,-316.0,0.000238,3]
[364078115,1748989843242,-316.0,0.000238,3]
[364078116,1748989843251,-316.0,0.000238,3]
[364078117,1748989843260,-316.0,0.000238,3]
[364078118,1748989843270,-316.0,0.000238,3]
[364078119,1748989843279,-316.0,0.000238,3]
[364078120,1748989843288,-316.0,0.000238,3]
[364078121,1748989843298,-326.13480106,0.000238,3]
[364078122,1748989843307,-250.904194,0.000238,7]
[364078123,1748989843317,-250.904194,0.000238,7]
[364078124,1748989843326,-250.904194,0.000238,7]
[364078125,1748989843335,-250.904194,0.000238,7]
[364078126,1748989843344,-256.352417,0.000238,2]
[364078127,1748989843353,-256.352417,0.000238,2]
[364078128,1748989843363,-256.352417,0.000238,2]
[364078129,1748989843372,-256.352417,0.000238,2]
[364078130,1748989843382,-160.0,0.000238,3]
[364078131,1748989843391,-316.0,0.000238,3]
[364078132,1748989843401,-2583.06,0.000238,7]
[364078133,1748989843410,-1485.05,0.000238,2]
[364078134,1748989843419,-423.63107087,0.000238,3]
[364078135,1748989843429,-270.544082,0.000238,2]
[364078136,1748989843438,-206.0,0.000238,2]
[364078137,1748989843449,-229.42821335,0.000238,3]
[364078138,1748989843459,-386678.56457031,0.000238,2]
[364078139,1748989843471,-8667.01684915,0.000238,2]
[364078140,1748989843483,-3134.53930556,0.000238,2]
[364078141,1748989843529,-525.13101055,0.00019521,2]
[364078142,1748989843539,-309.27343301,0.00019728,2]
[364078143,1748989843550,-215.85757754,0.00019728,2]
[364078144,1748989843559,-257.05804929,0.00019934,2]
[364078145,1748989843570,-268.07296126,0.00019934,2]
[364078146,1748989843579,-222.68546874,0.00020141,2]
[364078147,1748989843677,-302.44554181,0.00020141,2]
[364078148,1748989843687,-525.13101055,0.00020348,3]
[364078149,1748989843697,-525.13101055,0.00020555,3]
[364078150,1748989843706,-525.13101055,0.00020762,3]
[364078151,1748989843716,-525.13101055,0.00020969,4]
[364078152,1748989843725,-525.13101055,0.00021176,4]
[364078153,1748989843735,-525.13101055,0.00021383,5]
[364078154,1748989843744,-525.13101055,0.0002159,5]
[364078155,1748989843754,-525.13101055,0.00021797,6]
[364078156,1748989843764,-525.13101055,0.00022003,6]
[364078157,1748989843773,-525.13101055,0.0002221,6]
[364078158,1748989843783,-364.5107659,0.00022219,2]
[364078159,1748989843792,-525.13101055,0.00022417,7]
[364078160,1748989843802,-176.5641048,0.00022493,2]
[364078161,1748989843811,-158.5442955,0.00022493,2]
[364078162,1748989843821,-709.0,0.00022494,2]
[364078163,1748989843831,-525.13101055,0.00022624,7]
[364078164,1748989843840,-525.13101055,0.00022831,8]
[364078165,1748989843850,-525.13101055,0.00023038,8]
[364078166,1748989843860,-54824.23561884,0.000238,2]
[364078167,1748989843872,-4924.79999392,0.000238,2]
[364078168,1748989843883,-27749.83100356,0.000238,2]
[364078192,1748989884385,-331.16888922,0.00015609,2]
[364078193,1748989886056,-155.60108244,0.00015609,2]
[364078194,1748989889014,-247.00956722,0.00015609,2]
[364078195,1748989891852,-205.46166963,0.00015609,2]
[364078196,1748989893488,-38.39112624,0.00015609,2]
[364078198,1748990094512,-208.97987017,0.00015581,2]
[364078199,1748990096599,-155.25152251,0.00015581,2]
[364078200,1748990102104,-154.29235432,0.00015581,2]
[364078201,1748990226234,4157.53163699,0.0001552,2]
[364078203,1748990323344,24900.0,0.00015481,2]
[364078212,1748990762566,5237.72099547,0.00015482,2]
[364078213,1748990762592,2000.77844323,0.00015482,2]
[364078229,1748991032439,-1010.69483821,0.000157,2]
[364078231,1748991032451,-255.0,0.000158,2]
[364078233,1748991032462,-1135.8653316,0.00015888,2]
[364078235,1748991032481,-165.70759278,0.00016338,2]
[364078238,1748991032497,-1200.0,0.00016433,2]
[364078240,1748991032510,-300.0,0.00016434,2]
[364078243,1748991032524,-300.0,0.00016434,2]
[364078245,1748991032536,-300.0,0.00016434,2]
[364078247,1748991032548,-300.0,0.00016434,2]
[364078250,1748991032560,-300.0,0.00016434,2]
[364078252,1748991032572,-430.0,0.00016438,2]
[364078255,1748991032584,-430.0,0.00016438,2]
[364078257,1748991032595,-430.0,0.00016438,2]
[364078258,1748991032607,-430.0,0.00016438,2]
[364078259,1748991032619,-498.40816944,0.00016438,2]
[364078261,1748991032630,-392.43320601,0.00016438,2]